fUST/lending_fUST_20260217
["ID","MTS","AMOUNT","RATE_DAILY","PERIOD"]
[405747166,1771272632350,-306.9675357,0.00015716,2]
[405747167,1771272632359,-306.9675357,0.00015716,2]
[405747168,1771272632368,-306.9675357,0.00015716,2]
[405747170,1771272632378,-306.9675357,0.00015716,2]
[405747172,1771272632387,-306.9675357,0.00015716,2]
[405747174,1771272632397,-306.9675357,0.00015716,2]
[405747176,1771272632406,-306.9675357,0.00015716,2]
[405747177,1771272632416,-306.9675357,0.00015716,2]
[405747178,1771272632425,-306.9675357,0.00015716,2]
[405747179,1771272632435,-306.9675357,0.00015716,2]
[405747180,1771272632445,-306.9675357,0.00015719,2]
[405747181,1771272632454,-306.9675357,0.00015719,2]
[405747182,1771272632464,-306.9675357,0.00015719,2]
[405747183,1771272632474,-306.9675357,0.00015719,2]
[405747184,1771272632483,-306.9675357,0.00015719,2]
[405747185,1771272632492,-306.9675357,0.00015721,2]
[405747186,1771272632502,-306.9675357,0.00015721,2]
[405747187,1771272632511,-306.9675357,0.00015721,2]
[405747188,1771272632521,-306.9675357,0.00015736,2]
[405747189,1771272632530,-362.5643933,0.00015792,2]
[405747190,1771272632539,-339.80602863,0.00015842,2]
[405747191,1771272632548,-300.0,0.0001603,2]
[405747192,1771272632558,-300.0,0.0001603,2]
[405747193,1771272632567,-300.0,0.0001603,2]
[405747194,1771272632577,-300.0,0.0001603,2]
[405747195,1771272632586,-300.0,0.0001603,2]
[405747196,1771272632596,-300.0,0.0001603,2]
[405747197,1771272632605,-300.0,0.0001603,2]
[405747198,1771272632615,-300.0,0.0001603,2]
[405747199,1771272632627,-300.0,0.0001603,2]
[405747200,1771272632639,-300.0,0.0001603,2]
[405747201,1771272632651,-300.0,0.0001603,2]
[405747202,1771272632663,-300.0,0.0001603,2]
[405747203,1771272632675,-300.0,0.0001603,2]
[405747204,1771272632687,-300.0,0.0001603,2]
[405747205,1771272632698,-300.0,0.0001603,2]
[405747206,1771272632710,-138.81618157,0.0001635,2]
[405747207,1771272632724,-461.18381843,0.0001635,2]
[405747208,1771272632736,-500.0,0.00016438,2]
[405747209,1771272632746,-572.01063486,0.00016438,2]
[405747210,1771272632757,-168.0,0.00016521,2]
[405747211,1771272632768,-306.9675357,0.00016538,2]
[405747212,1771272632780,-306.9675357,0.00016541,2]
[405747213,1771272632791,-306.9675357,0.00016541,2]
[405747214,1771272632802,-172.61540966,0.00016543,2]
[405747254,1771272638538,-134.35212604,0.00016543,2]
[405747256,1771272638550,-168.0,0.00016675,2]
[405747259,1771272638562,-546.3386741,0.00016706,2]
[405747261,1771272638574,-168.0,0.00016767,2]
[405747263,1771272638585,-826.0,0.00016769,2]
[405747265,1771272638595,-618.99515304,0.00016792,2]
[405748038,1771272646481,-3170.7023384,0.00015835,2]
[405748041,1771272646493,-207.00484696,0.00016792,2]
[405748043,1771272646505,-826.0,0.00016812,2]
[405748045,1771272646516,-826.0,0.00016849,2]
[405748047,1771272646527,-257.0,0.00016907,2]
[405748049,1771272646539,-826.0,0.00016914,2]
[405748052,1771272646550,-402.52,0.00016987,2]
[405748054,1771272646561,-826.0,0.00017115,2]
[405748056,1771272646572,-210.99874527,0.0001715,2]
[405748058,1771272646583,-14361.21062077,0.00017152,2]
[405748060,1771272646594,-826.0,0.00017207,2]
[405748063,1771272646605,-826.0,0.00017211,2]
[405748065,1771272646615,-482.253774,0.00017211,2]
[405748067,1771272646626,-826.0,0.00017226,2]
[405748069,1771272646636,-328.78,0.00017315,3]
[405748071,1771272646647,-164.39,0.00017315,3]
[405748073,1771272646658,-493.17,0.00017315,3]
[405748076,1771272646669,-7275.83167057,0.00017325,2]
[405750593,1771273553104,-733.25933654,0.00016134,2]
[405750594,1771273553125,-283.36277515,0.00016216,2]
[405750595,1771273553150,-24.54371842,0.00016263,2]
[405750606,1771273630359,-537.39142944,0.00016263,2]
[405750607,1771273635073,-2684.31556104,0.00016263,2]
[405750608,1771273635094,-82.62273846,0.00016297,2]
[405750609,1771273643117,-440.89457285,0.00016297,2]
[405750631,1771273831501,-184.072175,0.00015452,2]
[405750633,1771273831511,-283.69216559,0.00015501,2]
[405750635,1771273831520,-4487.54357983,0.0001555,2]
[405750637,1771273831530,-306.9675357,0.00015719,2]
[405750639,1771273831539,-300.0,0.00016199,2]
[405750640,1771273831548,-886.0,0.00016199,2]
[405750641,1771273831557,-7552.30958457,0.000162,2]
[405750642,1771273831569,-5244.69041543,0.000162,2]
[405750643,1771273831578,-66.10961149,0.00016297,2]
[405750644,1771273831587,-684.23782152,0.00016334,2]
[405750645,1771273831601,-113.83021478,0.00016334,2]
[405750646,1771273831610,-393.23623493,0.00016363,2]
[405750665,1771273837652,-5072.90882225,0.00016363,2]
[405750672,1771273837709,-1043.14050314,0.00016363,2]
[405750679,1771273837766,-10135.86260695,0.00016363,2]
[405750681,1771273837776,-5850.95622412,0.00016463,2]
[405750683,1771273837787,-3701.83017508,0.00016463,2]
[405751017,1771273843148,-542.61399736,0.00016363,2]
[405751034,1771273881878,-715.67462773,0.00016363,2]
[405751035,1771273881900,-300.0,0.00016462,2]
[405751036,1771273881912,-415.67462773,0.00016463,2]
[405751037,1771273881924,-265.16641026,0.00016463,2]
[405751294,1771274734106,-994.88387138,0.00015518,2]
[405751299,1771274828105,-234.9927418,0.00015518,2]
[405751362,1771274843092,-406.45778212,0.00015518,2]
[405751363,1771274843113,-283.89503529,0.0001594,2]
[405751364,1771274843133,-322.55382907,0.00016333,2]
[405751380,1771274845084,-177.44617093,0.00016333,2]
[405751381,1771274845104,-166.66666668,0.00016363,2]
[405751382,1771274845124,-215.22,0.000164,2]
[405751384,1771274845144,-1200.0,0.00016462,2]
[405751385,1771274845164,-300.0,0.00016462,2]
[405751386,1771274845189,-763.14391934,0.00016463,2]
[405751585,1771275037819,-300.0,0.00016462,2]
[405751587,1771275037828,-1163.32666253,0.00016463,2]
[405751598,1771275037927,-1820.51095744,0.00016463,2]
[405751600,1771275037938,-12547.55210873,0.00016463,2]
[405751602,1771275037948,-254.12077841,0.00016463,2]
[405751604,1771275037957,-157.8599742,0.00016558,2]
[405751606,1771275037967,-1190.70731061,0.00016563,2]
[405751788,1771275040012,-623.30149002,0.00016563,2]
[405752311,1771275045770,-308.64121557,0.00016563,2]
[405752312,1771275045821,-24405.51106903,0.00016563,2]
[405752313,1771275045831,-1101.00254698,0.00016563,2]
[405752314,1771275045841,-23184.43467902,0.00016663,2]
[405752901,1771275934246,-1132.6879704,0.00016496,2]
[405752902,1771275934269,-135.49864767,0.00016663,2]
[405752926,1771276026079,-281.28706241,0.00016663,2]
[405752927,1771276026103,-1560.80905319,0.00016663,2]
[405752928,1771276038084,-1497.27014924,0.00016663,2]
[405753026,1771276238052,-184.0721759,0.00015912,2]
[405753027,1771276238063,-512.56308629,0.00016162,2]
[405753070,1771276243500,-1456.80265791,0.00016162,2]
[405753071,1771276243511,-564.29022222,0.00016663,2]
[405753072,1771276243520,-300.0,0.00016762,2]
[405753073,1771276243530,-806.0,0.00016762,2]
[405753074,1771276243540,-5471.77461469,0.00016763,2]
[405753075,1771276243551,-552.00993428,0.00016763,2]
[405753076,1771276243562,-1780.30508639,0.00016763,2]
[405753077,1771276243573,-4046.77,0.00016763,2]
[405753099,1771276245992,-11690.87472072,0.00016763,2]
[405753100,1771276246104,-10189.484162,0.00016763,2]
[405753101,1771276246114,-1031.20397826,0.00016878,2]
[405753102,1771276246123,-210.99874528,0.00016978,2]
[405753103,1771276246132,-665.31466423,0.00017027,2]
[405753104,1771276246142,-574.5,0.00017243,2]
[405753105,1771276246151,-151.0,0.000173,2]
[405753106,1771276246160,-1059.71187782,0.00017308,2]
[405753107,1771276246170,-295.9,0.00017315,3]
[405753108,1771276246179,-246.58,0.00017315,3]
[405753109,1771276246188,-739.78,0.00017315,3]
[405753110,1771276246197,-572984.29297272,0.00017325,2]
[405753244,1771277148150,-733.25933654,0.00016082,2]
[405753245,1771277148175,-330.60857237,0.00016244,2]
[405753253,1771277231082,-507.15156068,0.00016244,2]
[405753272,1771277237244,-546.53213048,0.00016244,2]
[405753335,1771277245074,-1407.66413697,0.00016244,2]
[405753336,1771277245099,-275.66132116,0.0001654,2]
[405753337,1771277245120,-179.3273125,0.00016836,2]
[405753338,1771277245141,-811.80131048,0.00017,2]
[405753419,1771277431993,-1426.15458139,0.0001555,2]
[405753425,1771277432050,-231.2884492,0.0001555,2]
[405753427,1771277432060,-1127.74315652,0.00017,2]
[405753480,1771277438201,-3060.455533,0.00017,2]
[405753482,1771277438211,-275.81535024,0.00017067,2]
[405753484,1771277438223,-1790.99171795,0.00017136,2]
[405753486,1771277438233,-13.8303637,0.00017204,2]
[405753498,1771277438346,-286.1696363,0.00017204,2]
[405753500,1771277438356,-2996.4280696,0.00017205,2]
[405753502,1771277438366,-8892.31581157,0.00017236,2]
[405753504,1771277438375,-180.82,0.00017315,3]
[405753506,1771277438384,-542.5,0.00017315,3]
[405753508,1771277438394,-2649.37901901,0.00017325,2]
[405753510,1771277438406,-67858.99189399,0.00017325,2]
[405754052,1771277443672,-555.27837709,0.00017325,2]
[405754307,1771277446102,-37914.58910289,0.00017325,2]
[405754701,1771277500120,-259.33268204,0.00017225,2]
[405754982,1771278352127,-271.78043444,0.00017196,2]
[405754983,1771278352146,-243.0,0.000172,2]
[405754984,1771278352166,-322.46637333,0.00017205,2]
[405754985,1771278352185,-164.53546736,0.00017235,2]
[405754996,1771278438081,-215.22,0.000172,2]
[405754997,1771278438102,-46.98862369,0.00017235,2]
[405754998,1771278441085,-288.47590895,0.00017235,2]
[405754999,1771278441105,-991.76280947,0.00017236,2]
[405755000,1771278441124,-631.0,0.00017267,2]
[405755001,1771278441146,-703.345,0.00017267,2]
[405755002,1771278441165,-188.327,0.00017267,2]
[405755003,1771278441184,-4.76377095,0.00017315,3]
[405755004,1771278445106,-356.87622905,0.00017315,3]
[405755005,1771278445134,-300.0,0.00017323,2]
[405755006,1771278445155,-309.39296583,0.00017324,2]
[405755849,1771278646384,-166.66666668,0.00017224,2]
[405755851,1771278646394,-505.4544876,0.00017236,2]
[405755853,1771278646404,-362.33797066,0.00017236,2]
[405755855,1771278646414,-277.53903346,0.00017274,2]
[405755857,1771278646423,-300.0,0.00017323,2]
[405755859,1771278646433,-891.0,0.00017323,2]
[405755861,1771278646443,-32.92645615,0.00017324,2]
[405756229,1771278707007,662.0,0.00015,2]
[405756429,1771279540096,-1132.6879704,0.00016183,2]
[405756430,1771279540117,-108.85821338,0.00016265,2]
[405756451,1771279633078,-171.46575361,0.00016265,2]
[405756452,1771279633100,-523.5173113,0.00016346,2]
[405756454,1771279633123,-1243.67088806,0.00016477,2]
[405756482,1771279638093,-713.34705381,0.00016477,2]
[405756483,1771279638114,-300.0,0.00016576,2]
[405756484,1771279638139,-430.823,0.00016576,2]
[405756749,1771279838421,-69.177,0.00016576,2]
[405756751,1771279838431,-500.0,0.00016576,2]
[405756752,1771279838440,-500.0,0.00016576,2]
[405756753,1771279838449,-566.97243423,0.00016576,2]
[405756755,1771279838458,-300.0,0.00016576,2]
[405756757,1771279838467,-274.71748765,0.00016577,2]
[405756759,1771279838476,-819.19213555,0.00016577,2]
[405756762,1771279838495,-8957.62154797,0.00016577,2]
[405756764,1771279838504,-6912.55272355,0.00016677,2]
[405756766,1771279838520,-1531.28253876,0.00016677,2]
[405757323,1771279844364,-1938.1,0.00016677,2]
[405757325,1771279844375,-749.58,0.00016677,2]
[405757339,1771279844541,-400.0,0.00016677,2]
[405757358,1771279844763,-334.49123493,0.00016677,2]
[405757469,1771279846475,-932.05018313,0.00016677,2]
[405757477,1771279846536,-2909.25046849,0.00016677,2]
[405757479,1771279846546,-19748.49833787,0.00016777,2]
[405757481,1771279846555,-759.31840096,0.00016777,2]
[405757483,1771279846564,-276.63789255,0.00016786,2]
[405757485,1771279846573,-23037.3348776,0.00016877,2]
[405757487,1771279846582,-150.0,0.00017267,2]
[405757489,1771279846594,-150.236,0.00017267,2]
[405757491,1771279846604,-181.001,0.00017267,2]
[405757493,1771279846613,-8965.93797578,0.00017325,2]
[405757497,1771279846639,-53159.87556204,0.00017325,2]
[405760887,1771280756126,-733.25933654,0.00016096,2]
[405760888,1771280756145,-330.6085724,0.00016161,2]
[405760889,1771280756166,-17.76782745,0.00016259,2]
[405760890,1771280825074,-482.65726698,0.00016259,2]
[405760892,1771280834093,-636.29592281,0.00016259,2]
[405760893,1771280838077,-499.61337806,0.00016259,2]
[405760894,1771280838098,-274.73636432,0.00016451,2]
[405760895,1771280838119,-500.0,0.00016676,2]
[405760896,1771280838139,-500.0,0.00016776,2]
[405760897,1771280838163,-234.30375571,0.00017027,2]
[405760898,1771280838185,-592.22057021,0.00017101,2]
[405761001,1771281037854,-1772.09583453,0.00017101,2]
[405761003,1771281037864,-181.0,0.00017104,2]
[405761005,1771281037874,-283.73,0.00017315,3]
[405761007,1771281037883,-851.19,0.00017315,3]
[405761009,1771281037892,-300.0,0.00017324,2]
[405761011,1771281037902,-28782.09290589,0.00017325,2]
[405761329,1771281045664,-1154.46659861,0.00017325,2]
[405761356,1771281100322,-300.0,0.00017324,2]
[405761357,1771281100351,-224.98283345,0.00017324,2]
[405761358,1771281100374,-229.6636038,0.00017324,2]
[405761359,1771281100384,-70.3363962,0.00017325,2]
[405761360,1771281100395,-224.98283345,0.00017325,2]
[405761361,1771281100406,-111.6704961,0.00017325,2]
[405761520,1771281950130,-685.90971405,0.00016509,2]
[405761521,1771281950149,-203.30181,0.00016509,2]
[405761522,1771281950169,-120.55609721,0.00016773,2]
[405761524,1771282028115,-148.68553983,0.00016773,2]
[405761525,1771282028135,-300.0,0.00017035,2]
[405761526,1771282028155,-631.0,0.00017036,2]
[405761527,1771282028176,-613.047,0.00017036,2]
[405761528,1771282028197,-341.344,0.00017036,2]
[405761529,1771282028217,-188.327,0.00017036,2]
[405761530,1771282028237,-386.953,0.00017036,2]
[405761531,1771282028260,-177.63790743,0.00017225,2]
[405761532,1771282029111,-610.73604462,0.00017225,2]
[405761533,1771282029131,-322.53582305,0.00017315,3]
[405761534,1771282053080,-215.22,0.000167,2]
[405761535,1771282053099,-69.03348802,0.00017315,3]
[405762056,1771282243225,-537.53,0.00017315,3]
[405762058,1771282243235,-269.29241298,0.0001732,2]
[405762060,1771282243244,-469.24581288,0.00017324,2]
[405762062,1771282243254,-497.46470459,0.00017324,2]
[405762064,1771282243265,-2.53529541,0.00017324,2]
[405762066,1771282243274,-294.0,0.00017324,2]
[405762068,1771282243282,-260.56491357,0.00017324,2]
[405762576,1771282961649,200.0,3e-05,7]
[405762582,1771283153113,-1132.6879704,0.00016157,2]
[405762583,1771283153145,-85.68035713,0.00016222,2]
[405762611,1771283250114,-2023.4880024,0.00015413,2]
[405762615,1771283253125,-437.8598257,0.00015413,2]
[405762616,1771283253149,-186.64337186,0.00016222,2]
[405762617,1771283253172,-768.57703764,0.00016286,2]
[405762638,1771283432019,-161.636163,0.00016321,2]
[405762640,1771283432028,-270.30656948,0.00016352,2]
[405762641,1771283432040,-1273.87868313,0.00016452,2]
[405762642,1771283432050,-172.0,0.00016484,2]
[405762643,1771283432060,-300.0,0.00016484,2]
[405762645,1771283432070,-300.0,0.00016484,2]
[405762646,1771283432080,-1200.0,0.00016484,2]
[405762647,1771283432090,-1000.0291196,0.00016485,2]
[405762648,1771283432100,-673.68431534,0.00016485,2]
[405762649,1771283432112,-1857.65687518,0.00016485,2]
[405762651,1771283432123,-319.32539206,0.00016485,2]
[405762653,1771283432134,-151.0,0.00016586,2]
[405762655,1771283432144,-151.0,0.00016586,2]
[405762657,1771283432154,-151.0,0.00016586,2]
[405762658,1771283432164,-151.0,0.00016686,2]
[405762659,1771283432174,-151.0,0.00016686,2]
[405762660,1771283432184,-89.02211695,0.00016686,2]
[405762664,1771283438165,-131.28744105,0.00016686,2]
[405762665,1771283438174,-151.0,0.00016786,2]
[405762666,1771283438184,-151.0,0.00016786,2]
[405762667,1771283438194,-181.001,0.00017036,2]
[405762668,1771283438203,-2542.62791623,0.00017186,2]
[405762669,1771283438213,-9495.69953153,0.000172,2]
[405762670,1771283438222,-151.0,0.000172,2]
[405762671,1771283438231,-151.0,0.000172,2]
[405762672,1771283438240,-908.6252662,0.00017225,2]
[405762673,1771283438249,-150.0,0.00017226,2]
[405762674,1771283438260,-567.44,0.00017315,3]
[405762675,1771283438270,-179.47045156,0.00017324,2]
[405762676,1771283438279,-322.32337741,0.00017324,2]
[405762677,1771283438289,-53537.45223814,0.00017325,2]
[405762681,1771283440448,-666.19186556,0.00017325,2]
[405762698,1771283443638,-3456.39347663,0.00017325,2]
[405762701,1771283446078,-16743.42210227,0.00017325,2]
[405762702,1771283446142,-70731.90017508,0.00017325,2]
[405762929,1771284337109,-733.25933654,0.00016123,2]
[405762930,1771284337131,-270.39478785,0.00016204,2]
[405762931,1771284337152,-91.65487111,0.00016286,2]
[405762990,1771284443133,-711.97435405,0.00016286,2]
[405762992,1771284447105,-429.89387864,0.00016286,2]
[405762993,1771284447130,-2113.24158307,0.00016416,2]
[405762994,1771284450075,-462.81688908,0.00016416,2]
[405763098,1771284632094,-300.0,0.00016514,2]
[405763100,1771284632104,-107.03070456,0.00016514,2]
[405763105,1771284632240,-192.96929544,0.00016514,2]
[405763106,1771284632250,-1200.0,0.00016514,2]
[405763107,1771284632266,-270.48161938,0.00016515,2]
[405763108,1771284632278,-476.64689234,0.00016515,2]
[405763109,1771284632288,-273.63875837,0.00016515,2]
[405763110,1771284632298,-500.0,0.00016515,2]
[405763112,1771284632308,-500.0,0.00016515,2]
[405763114,1771284632319,-379.73295736,0.00016515,2]
[405763116,1771284632330,-120.26704264,0.00016515,2]
[405763118,1771284632340,-566.45691821,0.00016515,2]
[405763119,1771284632351,-211.87154078,0.00016515,2]
[405763121,1771284632360,-101.40449837,0.00016515,2]
[405763167,1771284638914,-128.20182587,0.00016515,2]
[405763169,1771284638925,-975.96910213,0.00016645,2]
[405763172,1771284638937,-3527.15523454,0.00016645,2]
[405763174,1771284638947,-151.0,0.00016716,2]
[405763176,1771284638958,-162.279701,0.00016716,2]
[405763178,1771284638968,-162.279701,0.00016716,2]
[405763180,1771284638979,-162.279701,0.00016716,2]
[405763182,1771284638989,-162.279701,0.00016716,2]
[405763184,1771284639000,-151.0,0.00016716,2]
[405763185,1771284639010,-151.0,0.00016716,2]
[405763188,1771284639020,-1173.64183624,0.00016716,2]
[405763189,1771284639030,-23341.09066897,0.00016745,2]
[405763191,1771284639040,-178.006924,0.00016816,2]
[405763194,1771284639049,-162.279701,0.00016816,2]
[405763196,1771284639059,-162.279701,0.00016816,2]
[405763198,1771284639070,-162.279701,0.00016816,2]
[405763200,1771284639079,-162.279701,0.00016816,2]
[405763202,1771284639089,-151.0,0.00016816,2]
[405763204,1771284639099,-154.615671,0.00016816,2]
[405763206,1771284639109,-1604.23144385,0.00016845,2]
[405763208,1771284639121,-5171.13827924,0.00016845,2]
[405763651,1771284643761,-256.2,0.00016845,2]
[405763907,1771284646247,-20611.33985564,0.00016845,2]
[405763909,1771284646257,-162.279701,0.00016916,2]
[405763911,1771284646267,-162.279701,0.00016916,2]
[405763913,1771284646280,-162.279701,0.00016916,2]
[405763915,1771284646289,-162.279701,0.00016916,2]
[405763917,1771284646298,-27642.90957874,0.00016945,2]
[405763919,1771284646308,-162.279701,0.00017016,2]
[405763921,1771284646319,-162.279701,0.00017016,2]
[405763923,1771284646328,-162.279701,0.00017016,2]
[405763925,1771284646338,-162.279701,0.00017016,2]
[405763927,1771284646350,-181.0,0.00017019,2]
[405763929,1771284646360,-32171.21315871,0.00017045,2]
[405763931,1771284646369,-32171.21315871,0.00017145,2]
[405763933,1771284646378,-6264.9944047,0.00017232,2]
[405763935,1771284646388,-656.6853049,0.00017232,2]
[405763937,1771284646397,-37266.40022188,0.00017245,2]
[405763939,1771284646406,-231.96520249,0.00017324,2]
[405763941,1771284646417,-500.0,0.00017324,2]
[405763943,1771284646426,-171.2425799,0.00017324,2]
[405763946,1771284646436,-417.53736448,0.00017324,2]
[405763948,1771284646445,-47961.20226249,0.00017325,2]
[405763950,1771284646457,-597.65534701,0.00017325,2]
[405764048,1771284701257,-300.0,0.00017324,2]
[405764049,1771284701311,-838.06405012,0.00017325,2]
[405764090,1771285531127,-523.5173113,0.00016315,2]
[405764091,1771285531150,-494.80444738,0.00016446,2]
[405764097,1771285629080,-215.22,0.000164,2]
[405764098,1771285629106,-1504.10195033,0.00016446,2]
[405764099,1771285629129,-270.45681973,0.00016496,2]
[405764100,1771285629152,-300.0,0.00016544,2]
[405764101,1771285629191,-222.55701731,0.00016545,2]
[405764102,1771285629223,-250.27276134,0.00016545,2]
[405764103,1771285631093,-249.72723866,0.00016545,2]
[405764104,1771285631117,-500.0,0.00016545,2]
[405764105,1771285631138,-161.41487765,0.00016545,2]
[405764106,1771285636093,-302.10982813,0.00016545,2]
[405764149,1771285832514,-562.28378186,0.00016776,2]
[405764151,1771285832525,-594.54488708,0.00016776,2]
[405764153,1771285832537,-1570.06462682,0.00016776,2]
[405764155,1771285832547,-300.0,0.00016875,2]
[405764157,1771285832556,-260.0,0.00016875,2]
[405764159,1771285832567,-500.0,0.00016875,2]
[405764161,1771285832577,-500.0,0.00016875,2]
[405764164,1771285832591,-322.35660264,0.00016875,2]
[405764166,1771285832601,-7196.49207559,0.00016876,2]
[405764168,1771285832615,-497.0,0.00016876,2]
[405764170,1771285832634,-364.935,0.00016876,2]
[405764290,1771285838564,-2321.27992555,0.00016876,2]
[405764292,1771285838577,-1395.21801967,0.00016876,2]
[405764295,1771285838589,-2056.51600193,0.00016876,2]
[405764518,1771285840715,-46.85190996,0.00016876,2]
[405764520,1771285840725,-4680.85697549,0.00016976,2]
[405765058,1771285846465,-330.6085724,0.00016086,2]
[405765060,1771285846475,-2922.48642901,0.00016976,2]
[405765303,1771286482499,-40.67394214,0.00016029,2]
[405765304,1771286482531,-1595.66045316,0.00016029,2]
[405765327,1771286754104,-1132.6879704,0.00015974,2]
[405765328,1771286754126,-65.67570025,0.00016135,2]
[405765358,1771286843109,-199.37198309,0.00016135,2]
[405765359,1771286843131,-203.30181,0.00016171,2]
[405765360,1771286843153,-742.28864796,0.0001634,2]
[405765361,1771286843175,-199.92398226,0.0001634,2]
[405765363,1771286847073,-269.18064391,0.00016153,2]
[405765364,1771286847095,-959.90203018,0.0001634,2]
[405765365,1771286847118,-868.31738294,0.0001634,2]
[405765414,1771287032469,-172.59571012,0.000156,2]
[405765416,1771287032480,-800.16192552,0.0001634,2]
[405765418,1771287032490,-195.70580561,0.0001634,2]
[405765420,1771287032500,-305.79032126,0.0001634,2]
[405765422,1771287032509,-439.89772455,0.0001634,2]
[405765424,1771287032518,-57.40100842,0.00016386,2]
[405765426,1771287032530,-167.58182503,0.00016386,2]
[405765428,1771287032539,-500.0,0.00016645,2]
[405765430,1771287032549,-294.0,0.00016686,2]
[405765432,1771287032558,-300.0,0.00016686,2]
[405765434,1771287032568,-151.0,0.00016687,2]
[405765436,1771287032578,-151.0,0.00016687,2]
[405765438,1771287032587,-151.0,0.00016687,2]
[405765440,1771287032597,-300.0,0.00016714,2]
[405765442,1771287032608,-300.0,0.00016714,2]
[405765444,1771287032619,-300.0,0.00016714,2]
[405765446,1771287032628,-300.0,0.00016714,2]
[405765448,1771287032638,-300.0,0.00016714,2]
[405765450,1771287032648,-300.0,0.00016714,2]
[405765452,1771287032658,-300.0,0.00016714,2]
[405765454,1771287032668,-300.0,0.00016714,2]
[405765455,1771287032678,-300.0,0.00016714,2]
[405765457,1771287032688,-300.0,0.00016714,2]
[405765459,1771287032698,-300.0,0.00016714,2]
[405765461,1771287032710,-300.0,0.00016714,2]
[405765463,1771287032720,-300.0,0.00016714,2]
[405765466,1771287032730,-300.0,0.00016714,2]
[405765467,1771287032739,-82.41555703,0.00016714,2]
[405765470,1771287032756,-217.58444297,0.00016714,2]
[405765472,1771287032769,-328.25268642,0.00016816,2]
[405765716,1771287039224,-271.74731358,0.00016816,2]
[405765717,1771287039234,-3099.54078225,0.00016951,2]
[405765718,1771287039244,-500.0,0.00016975,2]
[405765719,1771287039254,-500.0,0.00016975,2]
[405765720,1771287039264,-385.86275205,0.00017,2]
[405765721,1771287039274,-401.878145,0.00017033,2]
[405765722,1771287039283,-45.39915745,0.00017035,2]
[405765723,1771287039295,-567.64784255,0.00017035,2]
[405765724,1771287039304,-236.27961487,0.00017035,2]
[405765725,1771287039316,-394.72038513,0.00017035,2]
[405765726,1771287039325,-371.817277,0.00017035,2]
[405765727,1771287039442,-15.135723,0.00017035,2]
[405765728,1771287039453,-181.0,0.00017035,2]
[405765729,1771287039463,-15863.55707368,0.00017051,2]
[405765730,1771287039473,-1709.8249097,0.00017075,2]
[405765731,1771287039483,-3954.5778798,0.00017151,2]
[405765732,1771287039495,-1968.1218381,0.00017151,2]
[405766034,1771287044318,-12766.51976297,0.00017151,2]
[405766040,1771287044374,-561.05337898,0.00017151,2]
[405766264,1771287046670,-2286.98369844,0.00017151,2]
[405766552,1771287069082,500.0,0.00013273,2]
[405766553,1771287069146,1026.00833744,0.00013821,2]
[405766563,1771287947131,-733.25933654,0.00016222,2]
[405766564,1771287947155,-372.35512647,0.00016352,2]
[405766566,1771288032077,-491.479758,0.00016352,2]
[405766567,1771288032099,-269.83748713,0.00016411,2]
[405766568,1771288032121,-158.0,0.000168,2]
[405766569,1771288032143,-151.0,0.00016817,2]
[405766570,1771288032166,-1428.24467611,0.00016897,2]
[405766571,1771288035120,-571.75532389,0.00016897,2]
[405766572,1771288035146,-203.51023708,0.00016897,2]
[405766580,1771288042071,-446.74618298,0.00016897,2]
[405766600,1771288231630,-264.44073739,0.00016898,2]
[405766602,1771288231639,-158.0,0.000169,2]
[405766603,1771288231648,-159.29144568,0.000169,2]
[405766605,1771288231657,-79.82935309,0.00016917,2]
[405766608,1771288231669,-71.17064691,0.00016917,2]
[405766609,1771288231678,-865.47408547,0.00017032,2]
[405766611,1771288231687,-169.49983544,0.00017035,2]
[405766613,1771288231696,-221.99425469,0.00017047,2]
[405766616,1771288231705,-259.76918731,0.0001707,2]
[405766617,1771288231715,-181.0,0.00017147,2]
[405766620,1771288231725,-267.74933883,0.00017216,2]
[405766621,1771288231734,-300.0,0.00017299,2]
[405766623,1771288231743,-95.31108575,0.00017299,2]